[Event "Late-Titled-Tuesday-Blitz-February-27-2024"]
[Site "Chess.com"]
[Date "2024.02.27"]
[Round "9"]
[White "Tunahan_Makaraci"]
[Black "Korchmar_Vasiliy"]
[Result "0-1"]
[WhiteElo "2582"]
[BlackElo "2715"]
[TimeControl "180+1"]
[EndTime "15:43:19 PST"]
[Termination "Korchmar_Vasiliy won by resignation"]

1. e4 {[%clk 0:03:00.9]} 1... c5 {[%clk 0:02:59.9]} 2. Nf3 {[%clk 0:03:01]} 2...
a6 {[%clk 0:02:59.9]} 3. c3 {[%clk 0:03:00.9]} 3... d5 {[%clk 0:02:57.4]} 4.
exd5 {[%clk 0:03:01]} 4... Nf6 {[%clk 0:02:58.1]} 5. d4 {[%clk 0:03:00.4]} 5...
Nxd5 {[%clk 0:02:56.6]} 6. Bc4 {[%clk 0:02:59.4]} 6... e6 {[%clk 0:02:52.7]} 7.
O-O {[%clk 0:02:59.1]} 7... Nc6 {[%clk 0:02:52.8]} 8. Be3 {[%clk 0:02:54.9]}
8... cxd4 {[%clk 0:02:51]} 9. Bxd5 {[%clk 0:02:50]} 9... exd5 {[%clk 0:02:36.7]}
10. Nxd4 {[%clk 0:02:49]} 10... Bd6 {[%clk 0:02:35.5]} 11. Nd2 {[%clk
0:02:48.3]} 11... O-O {[%clk 0:02:34.6]} 12. N2f3 {[%clk 0:02:48.3]} 12... Bg4
{[%clk 0:02:33.4]} 13. h3 {[%clk 0:02:48.1]} 13... Bh5 {[%clk 0:02:33]} 14. Nf5
{[%clk 0:02:38.8]} 14... Bc7 {[%clk 0:02:30.1]} 15. Bc5 {[%clk 0:01:58.6]} 15...
Re8 {[%clk 0:02:29]} 16. Ng3 {[%clk 0:01:55.8]} 16... Bg6 {[%clk 0:02:19.8]} 17.
Qd2 {[%clk 0:01:51.2]} 17... h6 {[%clk 0:02:13.3]} 18. Rfe1 {[%clk 0:01:50.7]}
18... Qf6 {[%clk 0:02:13.2]} 19. Nd4 {[%clk 0:01:44.6]} 19... Ne5 {[%clk
0:02:05.5]} 20. b3 {[%clk 0:01:33.1]} 20... Nd3 {[%clk 0:02:04.9]} 21. Rxe8+
{[%clk 0:01:31.9]} 21... Rxe8 {[%clk 0:02:05.8]} 22. Ba3 {[%clk 0:01:26.4]}
22... Bf4 {[%clk 0:02:06.3]} 23. Qd1 {[%clk 0:01:21.4]} 23... Nxf2 {[%clk
0:02:06.7]} 24. Qf3 {[%clk 0:01:14.3]} 24... Ne4 {[%clk 0:01:50.7]} 25. Nge2
{[%clk 0:01:08.9]} 25... Bg5 {[%clk 0:01:37.8]} 26. Qxf6 {[%clk 0:01:05.3]}
26... Bxf6 {[%clk 0:01:38.7]} 27. Bb2 {[%clk 0:01:02.2]} 27... Nc5 {[%clk
0:01:34.2]} 28. Nf4 {[%clk 0:01:00.1]} 28... Be4 {[%clk 0:01:26.4]} 29. Re1
{[%clk 0:00:56]} 29... Rd8 {[%clk 0:01:23.1]} 30. Rd1 {[%clk 0:00:43.6]} 30...
Bg5 {[%clk 0:01:19.6]} 31. Bc1 {[%clk 0:00:43.5]} 31... Rc8 {[%clk 0:01:10.5]}
32. Be3 {[%clk 0:00:38.7]} 32... Nd7 {[%clk 0:01:09.4]} 33. Nde2 {[%clk
0:00:34.7]} 33... Nf6 {[%clk 0:01:07.3]} 34. g3 {[%clk 0:00:28.3]} 34... h5
{[%clk 0:01:06.6]} 35. Kf2 {[%clk 0:00:25.9]} 35... h4 {[%clk 0:01:04.5]} 36.
Ng2 {[%clk 0:00:17.3]} 36... hxg3+ {[%clk 0:01:00.5]} 37. Nxg3 {[%clk
0:00:12.8]} 37... Bxe3+ {[%clk 0:01:00.2]} 38. Nxe3 {[%clk 0:00:11.8]} 38...
Rxc3 {[%clk 0:01:00.7]} 39. Nxe4 {[%clk 0:00:09.9]} 39... dxe4 {[%clk
0:01:00.2]} 40. Rd8+ {[%clk 0:00:09.3]} 40... Kh7 {[%clk 0:01:00.5]} 41. Nf5
{[%clk 0:00:09.1]} 41... Rf3+ {[%clk 0:00:59.7]} 0-1

[Event "Late-Titled-Tuesday-Blitz-February-27-2024"]
[Site "Chess.com"]
[Date "2024.02.27"]
[Round "9"]
[White "secretsuperstar7"]
[Black "Boninknights"]
[Result "1/2-1/2"]
[WhiteElo "2509"]
[BlackElo "2400"]
[TimeControl "180+1"]
[EndTime "15:43:19 PST"]
[Termination "Game drawn by repetition"]

1. c4 {[%clk 0:02:56.2]} 1... Nc6 {[%clk 0:02:57.3]} 2. Nc3 {[%clk 0:02:51.4]}
2... e5 {[%clk 0:02:56.6]} 3. Nf3 {[%clk 0:02:51.4]} 3... Nf6 {[%clk 0:02:54.5]}
4. d3 {[%clk 0:02:51.3]} 4... Bb4 {[%clk 0:02:52.7]} 5. Bd2 {[%clk 0:02:47.7]}
5... O-O {[%clk 0:02:51.3]} 6. g3 {[%clk 0:02:47.7]} 6... Bxc3 {[%clk 0:02:46]}
7. Bxc3 {[%clk 0:02:47.1]} 7... d6 {[%clk 0:02:42.2]} 8. Bg2 {[%clk 0:02:46.7]}
8... Re8 {[%clk 0:02:37.8]} 9. O-O {[%clk 0:02:46]} 9... a5 {[%clk 0:02:31.2]}
10. Rb1 {[%clk 0:02:25.5]} 10... e4 {[%clk 0:02:18.3]} 11. Nd4 {[%clk
0:02:22.3]} 11... Nxd4 {[%clk 0:02:17.2]} 12. Bxd4 {[%clk 0:02:22.2]} 12... Bf5
{[%clk 0:02:15.8]} 13. Bxf6 {[%clk 0:01:59.8]} 13... Qxf6 {[%clk 0:02:12.7]} 14.
dxe4 {[%clk 0:01:48.4]} 14... Bxe4 {[%clk 0:02:11.4]} 15. Bxe4 {[%clk
0:01:48.6]} 15... Rxe4 {[%clk 0:02:09.8]} 16. Qd5 {[%clk 0:01:48.6]} 16... Rxe2
{[%clk 0:02:02.3]} 17. Qxb7 {[%clk 0:01:45.7]} 17... Rae8 {[%clk 0:02:00.5]} 18.
Qxc7 {[%clk 0:01:42.3]} 18... h5 {[%clk 0:01:52.2]} 19. h4 {[%clk 0:01:19.2]}
19... Rxb2 {[%clk 0:01:29.4]} 20. Rxb2 {[%clk 0:01:18.6]} 20... Qxb2 {[%clk
0:01:29.1]} 21. Qxa5 {[%clk 0:01:18.5]} 21... g6 {[%clk 0:01:23.3]} 22. Qa6
{[%clk 0:01:02.3]} 22... Re6 {[%clk 0:01:18.9]} 23. a4 {[%clk 0:00:47.7]} 23...
Kg7 {[%clk 0:01:18.2]} 24. Qb5 {[%clk 0:00:44.5]} 24... Qa2 {[%clk 0:01:11.5]}
25. a5 {[%clk 0:00:40.6]} 25... Re5 {[%clk 0:01:08]} 26. Qd7 {[%clk 0:00:35.8]}
26... Qxc4 {[%clk 0:01:00.4]} 27. Qxd6 {[%clk 0:00:22.1]} 27... Rxa5 {[%clk
0:00:54.3]} 28. Re1 {[%clk 0:00:22.3]} 28... Ra2 {[%clk 0:00:50.8]} 29. Re8
{[%clk 0:00:15.5]} 29... Ra1+ {[%clk 0:00:44.6]} 30. Kh2 {[%clk 0:00:15.2]}
30... Rh1+ {[%clk 0:00:41.8]} 31. Kxh1 {[%clk 0:00:12.3]} 31... Qf1+ {[%clk
0:00:41.6]} 32. Kh2 {[%clk 0:00:12.7]} 32... Qxf2+ {[%clk 0:00:41.4]} 33. Kh1
{[%clk 0:00:11.7]} 33... Qf1+ {[%clk 0:00:41.6]} 34. Kh2 {[%clk 0:00:11.9]}
34... Qf2+ {[%clk 0:00:41.7]} 35. Kh1 {[%clk 0:00:12.1]} 35... Qf1+ {[%clk
0:00:42]} 36. Kh2 {[%clk 0:00:12.5]} 36... Qf2+ {[%clk 0:00:41.9]} 1/2-1/2

[Event "Late-Titled-Tuesday-Blitz-February-27-2024"]
[Site "Chess.com"]
[Date "2024.02.27"]
[Round "9"]
[White "Alphafischer2019"]
[Black "Nouali_Mohamed"]
[Result "1-0"]
[WhiteElo "2702"]
[BlackElo "2527"]
[TimeControl "180+1"]
[EndTime "15:43:20 PST"]
[Termination "Alphafischer2019 won on time"]

1. e4 {[%clk 0:03:00.9]} 1... c5 {[%clk 0:02:59.3]} 2. d3 {[%clk 0:02:59.7]}
2... Nc6 {[%clk 0:02:58.3]} 3. g3 {[%clk 0:02:59.6]} 3... g6 {[%clk 0:02:57.8]}
4. Bg2 {[%clk 0:02:59.7]} 4... Bg7 {[%clk 0:02:58.3]} 5. f4 {[%clk 0:03:00.4]}
5... d6 {[%clk 0:02:58.3]} 6. Nf3 {[%clk 0:03:01.1]} 6... Bg4 {[%clk 0:02:55.1]}
7. O-O {[%clk 0:02:57.7]} 7... Nf6 {[%clk 0:02:54.6]} 8. h3 {[%clk 0:02:55.2]}
8... Bxf3 {[%clk 0:02:54.2]} 9. Qxf3 {[%clk 0:02:55.8]} 9... O-O {[%clk
0:02:49.5]} 10. c3 {[%clk 0:02:55.5]} 10... Nd7 {[%clk 0:02:43.6]} 11. Be3
{[%clk 0:02:53.5]} 11... b5 {[%clk 0:02:38.2]} 12. Qf2 {[%clk 0:02:29.8]} 12...
b4 {[%clk 0:02:34.8]} 13. d4 {[%clk 0:02:27.1]} 13... bxc3 {[%clk 0:02:27.4]}
14. bxc3 {[%clk 0:02:25.3]} 14... cxd4 {[%clk 0:02:11.3]} 15. cxd4 {[%clk
0:02:23.2]} 15... Rc8 {[%clk 0:02:07]} 16. Nd2 {[%clk 0:02:13.3]} 16... Nb4
{[%clk 0:02:02.8]} 17. Nb3 {[%clk 0:02:07.4]} 17... Rc2 {[%clk 0:01:49.5]} 18.
Qe1 {[%clk 0:02:06.4]} 18... Qb8 {[%clk 0:01:37.5]} 19. e5 {[%clk 0:01:49.7]}
19... Rfc8 {[%clk 0:01:27.5]} 20. Bf2 {[%clk 0:01:42.5]} 20... e6 {[%clk
0:01:10.8]} 21. Qd1 {[%clk 0:01:31.5]} 21... d5 {[%clk 0:01:04.7]} 22. a3 {[%clk
0:01:31.1]} 22... Na6 {[%clk 0:00:49.4]} 23. Rb1 {[%clk 0:01:29.3]} 23... Qc7
{[%clk 0:00:44.8]} 24. Re1 {[%clk 0:01:27.2]} 24... Bf8 {[%clk 0:00:32.6]} 25.
Bf1 {[%clk 0:01:22.7]} 25... Nab8 {[%clk 0:00:32.8]} 26. a4 {[%clk 0:01:18]}
26... Bb4 {[%clk 0:00:31.6]} 27. Re2 {[%clk 0:01:17]} 27... a5 {[%clk
0:00:31.8]} 28. Rxc2 {[%clk 0:01:16.2]} 28... Qxc2 {[%clk 0:00:31.8]} 29. Bb5
{[%clk 0:01:16]} 29... Nb6 {[%clk 0:00:28.6]} 30. Nc5 {[%clk 0:01:14.4]} 30...
Qxd1+ {[%clk 0:00:19.4]} 31. Rxd1 {[%clk 0:01:15.3]} 31... Kf8 {[%clk
0:00:14.8]} 32. g4 {[%clk 0:01:15.5]} 32... Ke7 {[%clk 0:00:14.5]} 33. f5 {[%clk
0:01:14.8]} 33... gxf5 {[%clk 0:00:15.4]} 34. gxf5 {[%clk 0:01:15.7]} 34... exf5
{[%clk 0:00:10.9]} 35. Kg2 {[%clk 0:01:15.5]} 35... N8d7 {[%clk 0:00:10.6]} 36.
Bh4+ {[%clk 0:01:14.5]} 36... f6 {[%clk 0:00:05.4]} 37. exf6+ {[%clk 0:01:11.5]}
37... Kd6 {[%clk 0:00:05.2]} 38. Bg3+ {[%clk 0:01:10.2]} 38... f4 {[%clk
0:00:02]} 39. Bxf4+ {[%clk 0:01:10.1]} 1-0

[Event "Late-Titled-Tuesday-Blitz-February-27-2024"]
[Site "Chess.com"]
[Date "2024.02.27"]
[Round "9"]
[White "ImportedItalianMaple"]
[Black "TheMagician"]
[Result "0-1"]
[WhiteElo "2477"]
[BlackElo "2176"]
[TimeControl "180+1"]
[EndTime "15:43:20 PST"]
[Termination "TheMagician won on time"]

1. Nf3 {[%clk 0:03:00.9]} 1... d5 {[%clk 0:02:57.4]} 2. g3 {[%clk 0:03:01.3]}
2... c6 {[%clk 0:02:57]} 3. Bg2 {[%clk 0:03:01.7]} 3... h6 {[%clk 0:02:57.9]} 4.
O-O {[%clk 0:03:01.8]} 4... Bf5 {[%clk 0:02:58.1]} 5. c4 {[%clk 0:02:59.9]} 5...
e6 {[%clk 0:02:57]} 6. cxd5 {[%clk 0:02:49.1]} 6... exd5 {[%clk 0:02:56]} 7. d3
{[%clk 0:02:49.5]} 7... Nf6 {[%clk 0:02:55.4]} 8. Nc3 {[%clk 0:02:46.5]} 8...
Be7 {[%clk 0:02:54]} 9. Qb3 {[%clk 0:02:34]} 9... Qb6 {[%clk 0:02:52.5]} 10. e4
{[%clk 0:02:28.2]} 10... Qxb3 {[%clk 0:02:45.6]} 11. axb3 {[%clk 0:02:29.1]}
11... dxe4 {[%clk 0:02:45.8]} 12. dxe4 {[%clk 0:02:29.3]} 12... Be6 {[%clk
0:02:45.9]} 13. Nd4 {[%clk 0:02:27.9]} 13... Nbd7 {[%clk 0:02:37.4]} 14. Be3
{[%clk 0:02:19.9]} 14... Ng4 {[%clk 0:02:31.1]} 15. Nxe6 {[%clk 0:02:19.2]}
15... fxe6 {[%clk 0:02:29.7]} 16. Rxa7 {[%clk 0:02:12]} 16... Rxa7 {[%clk
0:02:22.2]} 17. Bxa7 {[%clk 0:02:12.9]} 17... Kf7 {[%clk 0:02:10.8]} 18. h3
{[%clk 0:01:56.2]} 18... Ra8 {[%clk 0:02:08.8]} 19. Bd4 {[%clk 0:01:47.6]} 19...
e5 {[%clk 0:02:07.5]} 20. hxg4 {[%clk 0:01:37]} 20... exd4 {[%clk 0:02:07.2]}
21. Ne2 {[%clk 0:01:37.7]} 21... c5 {[%clk 0:01:57.9]} 22. Rd1 {[%clk
0:01:37.9]} 22... Ra2 {[%clk 0:01:55]} 23. Rd2 {[%clk 0:01:38.2]} 23... Ne5
{[%clk 0:01:51]} 24. f3 {[%clk 0:01:27.1]} 24... Ra1+ {[%clk 0:01:45.6]} 25. Kf2
{[%clk 0:01:13.6]} 25... Bg5 {[%clk 0:01:38.9]} 26. Nf4 {[%clk 0:01:07.8]} 26...
Rb1 {[%clk 0:01:30]} 27. Ke2 {[%clk 0:00:56.1]} 27... Ng6 {[%clk 0:01:22.7]} 28.
Kd3 {[%clk 0:00:29.8]} 28... Bxf4 {[%clk 0:01:19.5]} 29. gxf4 {[%clk 0:00:30.7]}
29... Nxf4+ {[%clk 0:01:17.1]} 30. Kc4 {[%clk 0:00:31.3]} 30... Rc1+ {[%clk
0:01:16.8]} 31. Kb5 {[%clk 0:00:30.7]} 31... d3 {[%clk 0:01:16.8]} 32. e5 {[%clk
0:00:25.5]} 32... Rc2 {[%clk 0:01:12.6]} 33. Rd1 {[%clk 0:00:26.1]} 33... Rxg2
{[%clk 0:01:10.5]} 34. Kxc5 {[%clk 0:00:26.3]} 34... Rxb2 {[%clk 0:01:10.2]} 35.
b4 {[%clk 0:00:26.6]} 35... Ke6 {[%clk 0:01:10.4]} 36. Kd4 {[%clk 0:00:26.9]}
36... Rxb4+ {[%clk 0:01:09.3]} 37. Ke3 {[%clk 0:00:27.6]} 37... Kxe5 {[%clk
0:01:09.6]} 38. Ra1 {[%clk 0:00:27.1]} 38... Rb2 {[%clk 0:01:08]} 39. Ra5+
{[%clk 0:00:27.4]} 39... b5 {[%clk 0:01:06.5]} 0-1

[Event "Late-Titled-Tuesday-Blitz-February-27-2024"]
[Site "Chess.com"]
[Date "2024.02.27"]
[Round "9"]
[White "wild3000"]
[Black "Kirill_Klukin"]
[Result "0-1"]
[WhiteElo "2508"]
[BlackElo "2847"]
[TimeControl "180+1"]
[EndTime "15:43:24 PST"]
[Termination "Kirill_Klukin won by resignation"]

1. a3 {[%clk 0:02:51.1]} 1... d5 {[%clk 0:02:52.6]} 2. e3 {[%clk 0:02:50.4]}
2... Nf6 {[%clk 0:02:52.6]} 3. Nf3 {[%clk 0:02:50.4]} 3... Bg4 {[%clk 0:02:52]}
4. h3 {[%clk 0:02:47.2]} 4... Bh5 {[%clk 0:02:52.1]} 5. d4 {[%clk 0:02:45.2]}
5... e6 {[%clk 0:02:49.1]} 6. c4 {[%clk 0:02:45]} 6... c6 {[%clk 0:02:49.2]} 7.
Nc3 {[%clk 0:02:44.8]} 7... Nbd7 {[%clk 0:02:47.4]} 8. Be2 {[%clk 0:02:42.5]}
8... Bd6 {[%clk 0:02:47.3]} 9. cxd5 {[%clk 0:02:23.6]} 9... exd5 {[%clk
0:02:47.2]} 10. O-O {[%clk 0:02:18.9]} 10... O-O {[%clk 0:02:46.2]} 11. b4
{[%clk 0:02:06.5]} 11... a6 {[%clk 0:02:30.9]} 12. Bb2 {[%clk 0:02:06.3]} 12...
Qe7 {[%clk 0:02:30.7]} 13. Rc1 {[%clk 0:01:55.5]} 13... Rfe8 {[%clk 0:02:29.2]}
14. Re1 {[%clk 0:01:54.4]} 14... Rac8 {[%clk 0:02:23.8]} 15. Nh4 {[%clk
0:01:45.2]} 15... Bxe2 {[%clk 0:02:16.9]} 16. Qxe2 {[%clk 0:01:41.9]} 16... g6
{[%clk 0:02:14.1]} 17. Nf3 {[%clk 0:01:35.1]} 17... b5 {[%clk 0:02:00.9]} 18.
Qd3 {[%clk 0:01:33.6]} 18... Ne4 {[%clk 0:01:58.7]} 19. Nd2 {[%clk 0:01:16.7]}
19... Nxd2 {[%clk 0:01:57.8]} 20. Qxd2 {[%clk 0:01:16.2]} 20... Nb6 {[%clk
0:01:58.4]} 21. Qd3 {[%clk 0:01:05.5]} 21... Nc4 {[%clk 0:01:58.1]} 22. Rc2
{[%clk 0:01:05.9]} 22... f5 {[%clk 0:01:46.6]} 23. Bc1 {[%clk 0:01:03.9]} 23...
a5 {[%clk 0:01:37.9]} 24. bxa5 {[%clk 0:00:55.9]} 24... Ra8 {[%clk 0:01:37.8]}
25. a4 {[%clk 0:00:48.8]} 25... b4 {[%clk 0:01:36.4]} 26. Nb1 {[%clk 0:00:36.2]}
26... Qe4 {[%clk 0:01:05]} 27. Qd1 {[%clk 0:00:22.4]} 27... b3 {[%clk 0:01:01]}
28. Rxc4 {[%clk 0:00:09.3]} 28... dxc4 {[%clk 0:00:56.1]} 29. Nd2 {[%clk
0:00:09.4]} 29... Qd3 {[%clk 0:00:56.5]} 30. Qf3 {[%clk 0:00:09.3]} 30... Bb4
{[%clk 0:00:52.2]} 31. Rd1 {[%clk 0:00:08.6]} 31... Bxd2 {[%clk 0:00:48.1]} 32.
Rxd2 {[%clk 0:00:08.1]} 32... Qe4 {[%clk 0:00:48.8]} 33. Qe2 {[%clk 0:00:08]}
33... c3 {[%clk 0:00:48.9]} 34. Rd3 {[%clk 0:00:08.3]} 34... b2 {[%clk
0:00:48.4]} 35. Bxb2 {[%clk 0:00:07.9]} 35... cxb2 {[%clk 0:00:49.2]} 36. f3
{[%clk 0:00:07.5]} 36... b1=Q+ {[%clk 0:00:49.1]} 37. Kh2 {[%clk 0:00:08.4]}
37... Qbxd3 {[%clk 0:00:48.9]} 0-1

[Event "Late-Titled-Tuesday-Blitz-February-27-2024"]
[Site "Chess.com"]
[Date "2024.02.27"]
[Round "9"]
[White "ElHelvetico"]
[Black "Mikayel99"]
[Result "1-0"]
[WhiteElo "2737"]
[BlackElo "2559"]
[TimeControl "180+1"]
[EndTime "15:43:29 PST"]
[Termination "ElHelvetico won by resignation"]

1. Nf3 {[%clk 0:03:00.9]} 1... d5 {[%clk 0:02:55]} 2. g3 {[%clk 0:03:01.2]} 2...
g6 {[%clk 0:02:54.9]} 3. Bg2 {[%clk 0:03:01.7]} 3... Bg7 {[%clk 0:02:55.1]} 4.
d4 {[%clk 0:03:02.4]} 4... c5 {[%clk 0:02:54.8]} 5. c3 {[%clk 0:02:54.1]} 5...
Nd7 {[%clk 0:02:49.6]} 6. O-O {[%clk 0:02:53.5]} 6... e6 {[%clk 0:02:49.1]} 7.
Bg5 {[%clk 0:02:51.6]} 7... Ne7 {[%clk 0:02:45.2]} 8. Nbd2 {[%clk 0:02:43.5]}
8... h6 {[%clk 0:02:42.3]} 9. Bxe7 {[%clk 0:02:44.1]} 9... Qxe7 {[%clk
0:02:43.2]} 10. e4 {[%clk 0:02:44.5]} 10... dxe4 {[%clk 0:02:41]} 11. Nxe4
{[%clk 0:02:45.4]} 11... O-O {[%clk 0:02:40]} 12. Re1 {[%clk 0:02:43]} 12... Rd8
{[%clk 0:02:35.2]} 13. Qb3 {[%clk 0:02:31.8]} 13... cxd4 {[%clk 0:02:30]} 14.
Nxd4 {[%clk 0:02:32.1]} 14... Nf6 {[%clk 0:02:28.1]} 15. Rad1 {[%clk 0:02:23.3]}
15... Nxe4 {[%clk 0:02:12.9]} 16. Bxe4 {[%clk 0:02:24.2]} 16... e5 {[%clk
0:01:54.2]} 17. Nf3 {[%clk 0:01:22.9]} 17... Be6 {[%clk 0:01:43.6]} 18. Bd5
{[%clk 0:01:22.8]} 18... e4 {[%clk 0:01:28.8]} 19. Rxe4 {[%clk 0:01:18.7]} 19...
Rxd5 {[%clk 0:01:11.2]} 20. Rxd5 {[%clk 0:01:16.7]} 20... Qf6 {[%clk 0:00:49.2]}
21. Qxb7 {[%clk 0:01:06.4]} 21... Bxd5 {[%clk 0:00:48.9]} 22. Qxd5 {[%clk
0:01:05.8]} 22... Rd8 {[%clk 0:00:49.2]} 23. Qb7 {[%clk 0:01:00.7]} 23... Bf8
{[%clk 0:00:40]} 24. Kg2 {[%clk 0:00:57.8]} 24... Rd3 {[%clk 0:00:35.6]} 25. Rf4
{[%clk 0:00:58]} 25... Qe6 {[%clk 0:00:29]} 26. Nd4 {[%clk 0:00:57.7]} 26... Qe8
{[%clk 0:00:23.8]} 27. Re4 {[%clk 0:00:47.5]} 27... Qd8 {[%clk 0:00:22.1]} 28.
Qc6 {[%clk 0:00:40.5]} 28... Rd2 {[%clk 0:00:18.5]} 29. Re8 {[%clk 0:00:40.3]}
29... Qg5 {[%clk 0:00:09.3]} 30. Nf3 {[%clk 0:00:24.5]} 30... Rxf2+ {[%clk
0:00:03.6]} 31. Kxf2 {[%clk 0:00:24.3]} 1-0

[Event "Late-Titled-Tuesday-Blitz-February-27-2024"]
[Site "Chess.com"]
[Date "2024.02.27"]
[Round "9"]
[White "xakevicius91"]
[Black "Rutricks"]
[Result "0-1"]
[WhiteElo "2575"]
[BlackElo "2704"]
[TimeControl "180+1"]
[EndTime "15:43:39 PST"]
[Termination "Rutricks won by resignation"]

1. e4 {[%clk 0:03:00.9]} 1... g6 {[%clk 0:02:58.3]} 2. d4 {[%clk 0:02:54.6]}
2... Bg7 {[%clk 0:02:58.2]} 3. Nc3 {[%clk 0:02:49.2]} 3... c6 {[%clk 0:02:58.4]}
4. Nf3 {[%clk 0:02:34.6]} 4... d5 {[%clk 0:02:58]} 5. h3 {[%clk 0:02:35.2]} 5...
dxe4 {[%clk 0:02:58.2]} 6. Nxe4 {[%clk 0:02:36.1]} 6... Nf6 {[%clk 0:02:58.8]}
7. Nxf6+ {[%clk 0:02:36.7]} 7... exf6 {[%clk 0:02:59.7]} 8. Bc4 {[%clk
0:02:36.8]} 8... O-O {[%clk 0:03:00.6]} 9. O-O {[%clk 0:02:37.2]} 9... a5 {[%clk
0:03:01.4]} 10. a4 {[%clk 0:02:37.4]} 10... Na6 {[%clk 0:03:02.1]} 11. Bd2
{[%clk 0:02:37.9]} 11... Nc7 {[%clk 0:03:02.5]} 12. Re1 {[%clk 0:02:36.4]} 12...
Nd5 {[%clk 0:03:03]} 13. Ba2 {[%clk 0:02:34.4]} 13... Be6 {[%clk 0:03:03.3]} 14.
c4 {[%clk 0:02:33.7]} 14... Nb4 {[%clk 0:03:02.5]} 15. Bxb4 {[%clk 0:02:34]}
15... axb4 {[%clk 0:03:03.4]} 16. Bb3 {[%clk 0:02:33.6]} 16... Qa5 {[%clk
0:02:55.7]} 17. d5 {[%clk 0:02:25.1]} 17... Rfd8 {[%clk 0:02:36]} 18. Nd4 {[%clk
0:01:59]} 18... Bd7 {[%clk 0:02:29.2]} 19. Qe2 {[%clk 0:01:46.9]} 19... f5
{[%clk 0:02:25.7]} 20. Nf3 {[%clk 0:01:39]} 20... Re8 {[%clk 0:02:04.1]} 21. Qd2
{[%clk 0:01:37.3]} 21... cxd5 {[%clk 0:02:01.2]} 22. cxd5 {[%clk 0:01:28.3]}
22... Rxe1+ {[%clk 0:01:37.6]} 23. Nxe1 {[%clk 0:01:02.9]} 23... b5 {[%clk
0:01:28.5]} 24. Nf3 {[%clk 0:00:53.7]} 24... bxa4 {[%clk 0:01:27.6]} 25. d6
{[%clk 0:00:51.1]} 25... Qb5 {[%clk 0:00:58.3]} 26. Ng5 {[%clk 0:00:42]} 26...
Be8 {[%clk 0:00:56]} 27. d7 {[%clk 0:00:26.3]} 27... Qxd7 {[%clk 0:00:55.9]} 28.
Bxf7+ {[%clk 0:00:26.2]} 28... Kh8 {[%clk 0:00:54.5]} 29. Bd5 {[%clk 0:00:10.6]}
29... Rd8 {[%clk 0:00:51.9]} 30. Rd1 {[%clk 0:00:10.3]} 30... a3 {[%clk
0:00:47.4]} 31. bxa3 {[%clk 0:00:08.6]} 31... bxa3 {[%clk 0:00:48.3]} 32. Ne6
{[%clk 0:00:05.1]} 32... Qxd5 {[%clk 0:00:38.9]} 33. Qxd5 {[%clk 0:00:04.2]}
33... Rxd5 {[%clk 0:00:38.9]} 34. Rxd5 {[%clk 0:00:05.1]} 34... a2 {[%clk
0:00:39.6]} 35. Ra5 {[%clk 0:00:03.2]} 35... a1=Q+ {[%clk 0:00:37.3]} 36. Rxa1
{[%clk 0:00:04.1]} 36... Bxa1 {[%clk 0:00:37.3]} 37. Nf4 {[%clk 0:00:04.6]}
37... Be5 {[%clk 0:00:36.7]} 38. Ne2 {[%clk 0:00:04.9]} 38... Bb5 {[%clk
0:00:36.6]} 39. Nc1 {[%clk 0:00:03.8]} 39... Bc4 {[%clk 0:00:37.2]} 40. g3
{[%clk 0:00:03.6]} 40... Bb2 {[%clk 0:00:37.5]} 0-1

[Event "Late-Titled-Tuesday-Blitz-February-27-2024"]
[Site "Chess.com"]
[Date "2024.02.27"]
[Round "9"]
[White "gahryman"]
[Black "Boorchess"]
[Result "1-0"]
[WhiteElo "2696"]
[BlackElo "2523"]
[TimeControl "180+1"]
[EndTime "15:43:41 PST"]
[Termination "gahryman won by checkmate"]

1. e4 {[%clk 0:03:00.9]} 1... e5 {[%clk 0:03:00]} 2. Nf3 {[%clk 0:02:57.6]} 2...
Nf6 {[%clk 0:03:00]} 3. Nxe5 {[%clk 0:02:55.4]} 3... d6 {[%clk 0:02:59.4]} 4.
Nf3 {[%clk 0:02:55.6]} 4... Nxe4 {[%clk 0:02:59.3]} 5. d3 {[%clk 0:02:53.1]}
5... Nf6 {[%clk 0:02:58.8]} 6. d4 {[%clk 0:02:53.5]} 6... g6 {[%clk 0:02:58.6]}
7. c4 {[%clk 0:02:48.2]} 7... Bg7 {[%clk 0:02:58.4]} 8. h3 {[%clk 0:02:43.7]}
8... O-O {[%clk 0:02:58.2]} 9. Be2 {[%clk 0:02:44]} 9... Re8 {[%clk 0:02:56.3]}
10. O-O {[%clk 0:02:43.6]} 10... b6 {[%clk 0:02:48.8]} 11. Nc3 {[%clk
0:02:41.9]} 11... Bb7 {[%clk 0:02:48.6]} 12. d5 {[%clk 0:02:23.2]} 12... Nbd7
{[%clk 0:02:47.2]} 13. Nd4 {[%clk 0:02:21.3]} 13... Nc5 {[%clk 0:02:40.2]} 14.
Bf3 {[%clk 0:02:19.7]} 14... Qd7 {[%clk 0:02:36.3]} 15. Be3 {[%clk 0:02:01.5]}
15... a5 {[%clk 0:02:35.4]} 16. Qc2 {[%clk 0:01:59.2]} 16... Re7 {[%clk
0:02:27.6]} 17. Nc6 {[%clk 0:01:46.4]} 17... Rxe3 {[%clk 0:02:04.4]} 18. fxe3
{[%clk 0:01:44.8]} 18... Qe8 {[%clk 0:02:02.4]} 19. Nb5 {[%clk 0:01:28.4]} 19...
Qd7 {[%clk 0:01:43.6]} 20. e4 {[%clk 0:01:21.7]} 20... Re8 {[%clk 0:01:40.4]}
21. Rae1 {[%clk 0:01:21.1]} 21... Bxc6 {[%clk 0:01:36.8]} 22. dxc6 {[%clk
0:01:21]} 22... Qe7 {[%clk 0:01:35.8]} 23. b3 {[%clk 0:01:07.9]} 23... h5 {[%clk
0:01:34.3]} 24. a3 {[%clk 0:01:05.5]} 24... Nh7 {[%clk 0:01:31.6]} 25. b4 {[%clk
0:01:02.7]} 25... axb4 {[%clk 0:01:31.4]} 26. axb4 {[%clk 0:01:03.6]} 26... Ne6
{[%clk 0:01:31]} 27. e5 {[%clk 0:00:53.7]} 27... Bxe5 {[%clk 0:01:27.3]} 28. Bd5
{[%clk 0:00:53.9]} 28... Kg7 {[%clk 0:01:15.8]} 29. Kh1 {[%clk 0:00:39]} 29...
Nhf8 {[%clk 0:01:00]} 30. Re3 {[%clk 0:00:35.6]} 30... Qg5 {[%clk 0:00:54.6]}
31. Nxc7 {[%clk 0:00:15.5]} 31... Nxc7 {[%clk 0:00:37.4]} 32. Rxf7+ {[%clk
0:00:15.2]} 32... Kh8 {[%clk 0:00:37]} 33. Rxe5 {[%clk 0:00:14.7]} 33... dxe5
{[%clk 0:00:34.3]} 34. Rxc7 {[%clk 0:00:13.4]} 34... Nh7 {[%clk 0:00:29.5]} 35.
Qf2 {[%clk 0:00:12.5]} 35... Rf8 {[%clk 0:00:28.3]} 36. Rxh7+ {[%clk 0:00:12.7]}
36... Kxh7 {[%clk 0:00:27.6]} 37. Qxf8 {[%clk 0:00:13.2]} 37... Qc1+ {[%clk
0:00:27.6]} 38. Kh2 {[%clk 0:00:13.4]} 38... Qe3 {[%clk 0:00:27.1]} 39. Bg8+
{[%clk 0:00:12.9]} 39... Kh8 {[%clk 0:00:25.7]} 40. Bf7+ {[%clk 0:00:13.5]}
40... Kh7 {[%clk 0:00:26.1]} 41. Qg8+ {[%clk 0:00:14.4]} 41... Kh6 {[%clk
0:00:26.4]} 42. Qxg6# {[%clk 0:00:15.3]} 1-0